[Event "*** Titled Tuesday Blitz"]
[Site "Chess.com"]
[Date "2020.05.05"]
[Round "2"]
[White "Stronger1799"]
[Black "JulAnt"]
[Result "0-1"]
[WhiteElo "2118"]
[BlackElo "2427"]
[TimeControl "180+1"]
[EndTime "10:16:42 PDT"]
[Termination "JulAnt won on time"]

1. e4 {[%clk 0:02:39.5]} 1... c5 {[%clk 0:02:58.2]} 2. Nf3 {[%clk 0:02:38.9]}
2... e6 {[%clk 0:02:58.4]} 3. d4 {[%clk 0:02:38.9]} 3... cxd4 {[%clk 0:02:59.3]}
4. Nxd4 {[%clk 0:02:39.8]} 4... Nf6 {[%clk 0:02:58.9]} 5. Nc3 {[%clk 0:02:39.4]}
5... d6 {[%clk 0:02:59.3]} 6. f3 {[%clk 0:02:38.5]} 6... a6 {[%clk 0:02:58.5]}
7. Be3 {[%clk 0:02:38.6]} 7... b5 {[%clk 0:02:58.6]} 8. g4 {[%clk 0:02:37.9]}
8... b4 {[%clk 0:02:54]} 9. Nce2 {[%clk 0:02:28.1]} 9... e5 {[%clk 0:02:51.9]}
10. Nf5 {[%clk 0:02:12.6]} 10... g6 {[%clk 0:02:46.3]} 11. Nfg3 {[%clk
0:02:05.1]} 11... Be6 {[%clk 0:02:44.2]} 12. Qd2 {[%clk 0:02:04.8]} 12... Nc6
{[%clk 0:02:42.4]} 13. Rd1 {[%clk 0:01:53.1]} 13... Qc7 {[%clk 0:02:40.9]} 14.
h4 {[%clk 0:01:47]} 14... Rc8 {[%clk 0:02:18.1]} 15. h5 {[%clk 0:01:40.5]} 15...
Na5 {[%clk 0:02:09.9]} 16. Qxb4 {[%clk 0:01:09.5]} 16... Nc4 {[%clk 0:02:08.9]}
17. Bg5 {[%clk 0:01:03.6]} 17... Nd7 {[%clk 0:01:53]} 18. Nc3 {[%clk 0:00:53.4]}
18... Rb8 {[%clk 0:01:47.4]} 19. Qxb8+ {[%clk 0:00:12.2]} 19... Qxb8 {[%clk
0:01:46.6]} 20. hxg6 {[%clk 0:00:11.5]} 20... fxg6 {[%clk 0:01:45.9]} 21. Nd5
{[%clk 0:00:08.6]} 21... Bxd5 {[%clk 0:01:39]} 22. Rxd5 {[%clk 0:00:09.5]} 22...
Qxb2 {[%clk 0:01:30.6]} 23. Bxc4 {[%clk 0:00:08.6]} 23... Qc3+ {[%clk
0:01:30.8]} 0-1

[Event "*** Titled Tuesday Blitz"]
[Site "Chess.com"]
[Date "2020.05.05"]
[Round "2"]
[White "stoleriu"]
[Black "vladislavkovalev"]
[Result "0-1"]
[WhiteElo "2559"]
[BlackElo "2871"]
[TimeControl "180+1"]
[EndTime "10:16:51 PDT"]
[Termination "vladislavkovalev won by resignation"]

1. e4 {[%clk 0:03:00.9]} 1... e5 {[%clk 0:02:59.5]} 2. Nf3 {[%clk 0:03:00.8]}
2... Nc6 {[%clk 0:03:00.2]} 3. Bb5 {[%clk 0:03:00.6]} 3... a6 {[%clk 0:03:00.6]}
4. Ba4 {[%clk 0:03:00.4]} 4... Nf6 {[%clk 0:03:01.1]} 5. d3 {[%clk 0:03:00.4]}
5... b5 {[%clk 0:03:01]} 6. Bb3 {[%clk 0:03:00.4]} 6... Bc5 {[%clk 0:03:01.7]}
7. Nc3 {[%clk 0:02:59.2]} 7... h6 {[%clk 0:03:00]} 8. Nd5 {[%clk 0:02:58.8]}
8... d6 {[%clk 0:02:59.5]} 9. O-O {[%clk 0:02:57.7]} 9... Rb8 {[%clk 0:02:59.7]}
10. Be3 {[%clk 0:02:55.5]} 10... O-O {[%clk 0:02:52.9]} 11. c3 {[%clk
0:02:43.1]} 11... Nxd5 {[%clk 0:02:27.6]} 12. exd5 {[%clk 0:02:39.7]} 12... Bxe3
{[%clk 0:02:27.9]} 13. fxe3 {[%clk 0:02:36.3]} 13... Ne7 {[%clk 0:02:28.4]} 14.
e4 {[%clk 0:02:29.8]} 14... Ng6 {[%clk 0:02:25.2]} 15. d4 {[%clk 0:02:24.3]}
15... Qe7 {[%clk 0:02:23.5]} 16. dxe5 {[%clk 0:02:12.4]} 16... Nxe5 {[%clk
0:02:24.4]} 17. Nd4 {[%clk 0:02:12.2]} 17... Bd7 {[%clk 0:02:18.5]} 18. Qe2
{[%clk 0:02:11.3]} 18... a5 {[%clk 0:02:14.4]} 19. Rae1 {[%clk 0:02:07.8]} 19...
a4 {[%clk 0:02:07.8]} 20. Bc2 {[%clk 0:02:07.1]} 20... b4 {[%clk 0:02:08.4]} 21.
c4 {[%clk 0:01:59.1]} 21... g6 {[%clk 0:02:05.7]} 22. h3 {[%clk 0:01:52.3]}
22... Kg7 {[%clk 0:02:05.8]} 23. b3 {[%clk 0:01:48.3]} 23... Ra8 {[%clk
0:02:02.7]} 24. Bb1 {[%clk 0:01:35.4]} 24... Qg5 {[%clk 0:01:59.2]} 25. Qf2
{[%clk 0:01:28.8]} 25... Bxh3 {[%clk 0:01:52.2]} 26. Nf3 {[%clk 0:01:13.2]}
26... Nxf3+ {[%clk 0:01:52.2]} 27. Qxf3 {[%clk 0:01:14.1]} 27... Bg4 {[%clk
0:01:47.8]} 28. Qg3 {[%clk 0:01:07.6]} 28... axb3 {[%clk 0:01:41]} 29. axb3
{[%clk 0:01:06.7]} 29... f6 {[%clk 0:01:41.6]} 30. Bc2 {[%clk 0:00:57.1]} 30...
Ra2 {[%clk 0:01:39.4]} 31. Bd1 {[%clk 0:00:56.7]} 31... Bxd1 {[%clk 0:01:38.3]}
32. Qxg5 {[%clk 0:00:55.8]} 32... hxg5 {[%clk 0:01:38.2]} 33. Rxd1 {[%clk
0:00:56.2]} 33... Rfa8 {[%clk 0:01:34]} 34. Rf3 {[%clk 0:00:53.7]} 34... Re2
{[%clk 0:01:20.4]} 35. Rdf1 {[%clk 0:00:44.2]} 35... Raa2 {[%clk 0:01:20.1]} 36.
Rg3 {[%clk 0:00:41.4]} 36... Rxe4 {[%clk 0:01:19]} 37. Rgf3 {[%clk 0:00:38.8]}
37... f5 {[%clk 0:01:18.9]} 0-1

[Event "*** Titled Tuesday Blitz"]
[Site "Chess.com"]
[Date "2020.05.05"]
[Round "2"]
[White "cukin84"]
[Black "Gulkov_Igor"]
[Result "0-1"]
[WhiteElo "2052"]
[BlackElo "2374"]
[TimeControl "180+1"]
[EndTime "10:16:51 PDT"]
[Termination "Gulkov_Igor won by resignation"]

1. e4 {[%clk 0:03:00.9]} 1... c5 {[%clk 0:02:59.2]} 2. Nc3 {[%clk 0:03:00.2]}
2... d6 {[%clk 0:02:59.2]} 3. f4 {[%clk 0:02:59.5]} 3... g6 {[%clk 0:02:59.6]}
4. Nf3 {[%clk 0:02:59.5]} 4... Bg7 {[%clk 0:03:00.2]} 5. d3 {[%clk 0:02:58.3]}
5... Nc6 {[%clk 0:03:00.2]} 6. g3 {[%clk 0:02:57.9]} 6... e6 {[%clk 0:03:00.5]}
7. Bg2 {[%clk 0:02:58.1]} 7... Nge7 {[%clk 0:03:01]} 8. O-O {[%clk 0:02:57.8]}
8... O-O {[%clk 0:03:01.6]} 9. Qe1 {[%clk 0:02:56.5]} 9... b6 {[%clk 0:03:00.5]}
10. Nh4 {[%clk 0:02:53.5]} 10... f5 {[%clk 0:02:59.3]} 11. exf5 {[%clk
0:02:44.8]} 11... gxf5 {[%clk 0:02:58.5]} 12. Nf3 {[%clk 0:02:44.4]} 12... Qd7
{[%clk 0:02:57.5]} 13. Be3 {[%clk 0:02:35.5]} 13... Bb7 {[%clk 0:02:55.8]} 14.
Kh1 {[%clk 0:02:28]} 14... Rae8 {[%clk 0:02:54.6]} 15. Bg1 {[%clk 0:02:27]}
15... Nd4 {[%clk 0:02:48.3]} 16. Bxd4 {[%clk 0:02:23.2]} 16... cxd4 {[%clk
0:02:47.3]} 17. Ne2 {[%clk 0:02:22.7]} 17... e5 {[%clk 0:02:47.2]} 18. fxe5
{[%clk 0:02:19.2]} 18... dxe5 {[%clk 0:02:47]} 19. Qb4 {[%clk 0:01:59.3]} 19...
Nd5 {[%clk 0:02:44.7]} 20. Qb3 {[%clk 0:01:58]} 20... Kh8 {[%clk 0:02:43.1]} 21.
Nh4 {[%clk 0:01:47.5]} 21... Ne3 {[%clk 0:02:41.8]} 22. Rf3 {[%clk 0:01:43.1]}
22... Bxf3 {[%clk 0:02:32.8]} 23. Bxf3 {[%clk 0:01:42.4]} 23... e4 {[%clk
0:02:31.1]} 24. Bg2 {[%clk 0:01:37]} 24... Ng4 {[%clk 0:02:16.5]} 25. Nf4 {[%clk
0:01:27.8]} 25... Bh6 {[%clk 0:02:00.2]} 26. Rf1 {[%clk 0:01:18.9]} 26... Ne3
{[%clk 0:01:57.5]} 27. Rf2 {[%clk 0:01:17.9]} 27... Qc6 {[%clk 0:01:41.1]} 28.
Qb4 {[%clk 0:01:04.6]} 28... Qc5 {[%clk 0:01:25.8]} 29. Qa4 {[%clk 0:00:58.9]}
29... Bxf4 {[%clk 0:01:23.6]} 30. Rxf4 {[%clk 0:00:58]} 30... Qxc2 {[%clk
0:01:14.8]} 31. Qxc2 {[%clk 0:00:44.4]} 31... Nxc2 {[%clk 0:01:13.8]} 32. Nxf5
{[%clk 0:00:44.2]} 32... Rxf5 {[%clk 0:01:10.1]} 33. Rxf5 {[%clk 0:00:43.2]}
33... e3 {[%clk 0:01:09.4]} 0-1

[Event "*** Titled Tuesday Blitz"]
[Site "Chess.com"]
[Date "2020.05.05"]
[Round "2"]
[White "Manukyan_Artak"]
[Black "CHENNAIBOND"]
[Result "1-0"]
[WhiteElo "2344"]
[BlackElo "1215"]
[TimeControl "180+1"]
[EndTime "10:16:51 PDT"]
[Termination "Manukyan_Artak won by resignation"]

1. e4 {[%clk 0:03:00.9]} 1... c5 {[%clk 0:02:03.6]} 2. Nf3 {[%clk 0:02:58.7]}
2... Nc6 {[%clk 0:02:03.6]} 3. c3 {[%clk 0:02:55.4]} 3... Nf6 {[%clk 0:02:03.2]}
4. e5 {[%clk 0:02:55.6]} 4... Nd5 {[%clk 0:02:03.5]} 5. d4 {[%clk 0:02:56.5]}
5... d6 {[%clk 0:02:03.8]} 6. Bd3 {[%clk 0:02:50.6]} 6... dxe5 {[%clk 0:01:53]}
7. dxe5 {[%clk 0:02:50.4]} 7... Bg4 {[%clk 0:01:52.3]} 8. Be4 {[%clk 0:02:42.6]}
8... e6 {[%clk 0:01:39.4]} 9. Bxd5 {[%clk 0:02:37.6]} 9... exd5 {[%clk
0:01:37.2]} 10. Bf4 {[%clk 0:02:34]} 10... Be7 {[%clk 0:01:31.5]} 11. h3 {[%clk
0:02:32.8]} 11... Bf5 {[%clk 0:01:31.7]} 12. O-O {[%clk 0:02:31.8]} 12... O-O
{[%clk 0:01:31.3]} 13. Nbd2 {[%clk 0:02:29]} 13... Qd7 {[%clk 0:01:23]} 14. Re1
{[%clk 0:02:22.4]} 14... d4 {[%clk 0:01:10.4]} 15. cxd4 {[%clk 0:02:18.6]} 15...
Nxd4 {[%clk 0:01:10.4]} 16. Nxd4 {[%clk 0:02:18]} 16... Qxd4 {[%clk 0:01:10.4]}
17. Be3 {[%clk 0:02:07.4]} 17... Qd3 {[%clk 0:01:03.5]} 18. Nb3 {[%clk
0:01:57.9]} 18... Rac8 {[%clk 0:01:03.3]} 19. Qxd3 {[%clk 0:01:40.5]} 19... Bxd3
{[%clk 0:01:04.2]} 20. Rad1 {[%clk 0:01:35.9]} 20... Rfd8 {[%clk 0:01:04.8]} 21.
f4 {[%clk 0:01:21.8]} 21... Bc2 {[%clk 0:01:04.7]} 22. Rxd8+ {[%clk 0:01:21.1]}
22... Bxd8 {[%clk 0:01:00.5]} 23. Nxc5 {[%clk 0:01:15.9]} 23... Bb6 {[%clk
0:00:59.1]} 24. b4 {[%clk 0:01:13.6]} 24... a5 {[%clk 0:00:58.9]} 25. a3 {[%clk
0:01:13]} 25... h6 {[%clk 0:00:45.3]} 26. Nxb7 {[%clk 0:01:08.3]} 26... Bxe3+
{[%clk 0:00:44.6]} 27. Rxe3 {[%clk 0:01:08]} 27... axb4 {[%clk 0:00:45.2]} 28.
axb4 {[%clk 0:01:08.2]} 28... Bg6 {[%clk 0:00:44.4]} 29. Rb3 {[%clk 0:01:02.7]}
29... Bc2 {[%clk 0:00:42.7]} 30. Rb2 {[%clk 0:01:02.3]} 30... Be4 {[%clk
0:00:43.2]} 31. Nd6 {[%clk 0:01:01.8]} 31... Rc1+ {[%clk 0:00:43]} 32. Kh2
{[%clk 0:01:01]} 32... Bc6 {[%clk 0:00:42.4]} 33. b5 {[%clk 0:01:01.1]} 33...
Bb7 {[%clk 0:00:42.5]} 34. Nxb7 {[%clk 0:01:00]} 1-0

[Event "*** Titled Tuesday Blitz"]
[Site "Chess.com"]
[Date "2020.05.05"]
[Round "2"]
[White "kikydu96"]
[Black "powermove"]
[Result "1-0"]
[WhiteElo "2346"]
[BlackElo "1638"]
[TimeControl "180+1"]
[EndTime "10:16:53 PDT"]
[Termination "kikydu96 won on time"]

1. e4 {[%clk 0:03:00.9]} 1... e5 {[%clk 0:02:56.7]} 2. Nf3 {[%clk 0:03:00]} 2...
Nc6 {[%clk 0:02:55.9]} 3. Bc4 {[%clk 0:02:58.3]} 3... Nf6 {[%clk 0:02:55]} 4. d3
{[%clk 0:02:57.4]} 4... Bc5 {[%clk 0:02:54.1]} 5. O-O {[%clk 0:02:53]} 5... d6
{[%clk 0:02:50.4]} 6. c3 {[%clk 0:02:51.6]} 6... a6 {[%clk 0:02:47.3]} 7. a4
{[%clk 0:02:50.5]} 7... Ba7 {[%clk 0:02:45.4]} 8. Na3 {[%clk 0:02:49.9]} 8...
O-O {[%clk 0:02:41.7]} 9. h3 {[%clk 0:02:49.3]} 9... Be6 {[%clk 0:02:34.6]} 10.
Re1 {[%clk 0:02:44.9]} 10... Qe7 {[%clk 0:02:16.1]} 11. Be3 {[%clk 0:02:39.4]}
11... Bxc4 {[%clk 0:01:25.4]} 12. Nxc4 {[%clk 0:02:38.1]} 12... Nh5 {[%clk
0:01:18.9]} 13. Qb3 {[%clk 0:02:33.5]} 13... Rab8 {[%clk 0:01:04.5]} 14. Bxa7
{[%clk 0:02:30.9]} 14... Nxa7 {[%clk 0:01:03.5]} 15. Ne3 {[%clk 0:02:31.8]}
15... c6 {[%clk 0:00:47.1]} 16. Rad1 {[%clk 0:02:26.9]} 16... Nf4 {[%clk
0:00:42.1]} 17. d4 {[%clk 0:02:24.4]} 17... Qf6 {[%clk 0:00:38.7]} 18. Ng4
{[%clk 0:02:18.3]} 18... Nxh3+ {[%clk 0:00:24.5]} 19. Kh2 {[%clk 0:02:17]} 19...
Qf4+ {[%clk 0:00:22.4]} 20. Kxh3 {[%clk 0:02:16.5]} 20... h5 {[%clk 0:00:14]}
21. Ne3 {[%clk 0:02:11.1]} 21... g5 {[%clk 0:00:13.6]} 22. Nxg5 {[%clk
0:01:47.3]} 22... Qxg5 {[%clk 0:00:12]} 23. dxe5 {[%clk 0:01:46.6]} 23... dxe5
{[%clk 0:00:10.3]} 24. Nf5 {[%clk 0:01:44.9]} 24... Qg4+ {[%clk 0:00:07.7]} 25.
Kh2 {[%clk 0:01:44.6]} 25... Kh7 {[%clk 0:00:06.3]} 26. Rd3 {[%clk 0:01:42.5]}
26... Rg8 {[%clk 0:00:05.3]} 27. Qxf7+ {[%clk 0:01:40.4]} 27... Rg7 {[%clk
0:00:04.8]} 28. Qxg7+ {[%clk 0:01:39.2]} 28... Qxg7 {[%clk 0:00:04]} 29. Nxg7
{[%clk 0:01:40.1]} 29... Kxg7 {[%clk 0:00:04.3]} 30. Rd7+ {[%clk 0:01:39.6]}
30... Kf6 {[%clk 0:00:02.1]} 31. Red1 {[%clk 0:01:40]} 1-0

[Event "*** Titled Tuesday Blitz"]
[Site "Chess.com"]
[Date "2020.05.05"]
[Round "2"]
[White "Nostradamus123"]
[Black "Harut-1998"]
[Result "0-1"]
[WhiteElo "2493"]
[BlackElo "2722"]
[TimeControl "180+1"]
[EndTime "10:16:54 PDT"]
[Termination "Harut-1998 won by resignation"]

1. d4 {[%clk 0:03:00.9]} 1... Nf6 {[%clk 0:02:59.3]} 2. c4 {[%clk 0:03:00.7]}
2... e6 {[%clk 0:02:59.2]} 3. Nf3 {[%clk 0:02:59.1]} 3... d5 {[%clk 0:02:58.6]}
4. Nc3 {[%clk 0:02:56.2]} 4... Bb4 {[%clk 0:02:58]} 5. Qa4+ {[%clk 0:02:55.7]}
5... Nc6 {[%clk 0:02:56.9]} 6. Bg5 {[%clk 0:02:56.6]} 6... Bd7 {[%clk
0:02:53.9]} 7. Qb3 {[%clk 0:02:41.1]} 7... dxc4 {[%clk 0:02:47.6]} 8. Qxc4
{[%clk 0:02:38.8]} 8... O-O {[%clk 0:02:47.3]} 9. e3 {[%clk 0:02:37.1]} 9... a6
{[%clk 0:02:44.1]} 10. Bd3 {[%clk 0:02:30.4]} 10... h6 {[%clk 0:02:40.7]} 11.
Bh4 {[%clk 0:02:27.9]} 11... Be7 {[%clk 0:02:36.5]} 12. O-O {[%clk 0:02:16.7]}
12... Na5 {[%clk 0:02:29.6]} 13. Bxf6 {[%clk 0:02:01.5]} 13... Nxc4 {[%clk
0:02:21.7]} 14. Bxe7 {[%clk 0:01:56.8]} 14... Qxe7 {[%clk 0:02:22.6]} 15. Bxc4
{[%clk 0:01:56.6]} 15... c5 {[%clk 0:02:18.2]} 16. Rfd1 {[%clk 0:01:53.9]} 16...
Rfd8 {[%clk 0:02:16.4]} 17. d5 {[%clk 0:01:40.2]} 17... b5 {[%clk 0:02:10.8]}
18. Bd3 {[%clk 0:01:39.5]} 18... Bc8 {[%clk 0:01:50.2]} 19. Be4 {[%clk 0:01:37]}
19... exd5 {[%clk 0:01:47.5]} 20. Bxd5 {[%clk 0:01:31.9]} 20... Bb7 {[%clk
0:01:46.7]} 21. Bxb7 {[%clk 0:01:24]} 21... Qxb7 {[%clk 0:01:44.9]} 22. e4
{[%clk 0:01:23.5]} 22... b4 {[%clk 0:01:37.8]} 23. Nd5 {[%clk 0:01:22.2]} 23...
f5 {[%clk 0:01:37.3]} 24. Ne5 {[%clk 0:01:18.9]} 24... fxe4 {[%clk 0:01:35.1]}
25. Ne3 {[%clk 0:01:16.5]} 25... Qc7 {[%clk 0:01:33.9]} 26. N3c4 {[%clk
0:01:07.2]} 26... Rxd1+ {[%clk 0:01:26.7]} 27. Rxd1 {[%clk 0:01:08.1]} 27... Rd8
{[%clk 0:01:26.8]} 28. Re1 {[%clk 0:01:07.4]} 28... Rd5 {[%clk 0:01:24.7]} 29.
Ng4 {[%clk 0:00:58.9]} 29... Qf4 {[%clk 0:01:19]} 30. h3 {[%clk 0:00:45.4]}
30... h5 {[%clk 0:01:12.1]} 31. Nge3 {[%clk 0:00:34.7]} 31... Rd4 {[%clk
0:01:11]} 0-1

[Event "*** Titled Tuesday Blitz"]
[Site "Chess.com"]
[Date "2020.05.05"]
[Round "2"]
[White "IAgrest"]
[Black "White_Ghost"]
[Result "0-1"]
[WhiteElo "2235"]
[BlackElo "2463"]
[TimeControl "180+1"]
[EndTime "10:16:54 PDT"]
[Termination "White_Ghost won by resignation"]

1. e4 {[%clk 0:03:00.9]} 1... e5 {[%clk 0:02:58.7]} 2. Nf3 {[%clk 0:03:00.7]}
2... Nc6 {[%clk 0:02:58.6]} 3. Bb5 {[%clk 0:03:01.3]} 3... a6 {[%clk 0:02:58.4]}
4. Ba4 {[%clk 0:03:01.7]} 4... b5 {[%clk 0:02:58.7]} 5. Bb3 {[%clk 0:03:01.3]}
5... Na5 {[%clk 0:02:59.6]} 6. O-O {[%clk 0:02:50]} 6... d6 {[%clk 0:02:59.4]}
7. c3 {[%clk 0:02:48.5]} 7... Nxb3 {[%clk 0:02:54.6]} 8. axb3 {[%clk 0:02:49.4]}
8... Nf6 {[%clk 0:02:54.1]} 9. Re1 {[%clk 0:02:49.2]} 9... Bb7 {[%clk
0:02:46.5]} 10. d3 {[%clk 0:02:48.6]} 10... Be7 {[%clk 0:02:45.4]} 11. Nbd2
{[%clk 0:02:48.2]} 11... O-O {[%clk 0:02:45.3]} 12. Nf1 {[%clk 0:02:48.4]} 12...
Re8 {[%clk 0:02:36.4]} 13. Ng3 {[%clk 0:02:46]} 13... Bf8 {[%clk 0:02:36.6]} 14.
Nf5 {[%clk 0:02:42.5]} 14... h6 {[%clk 0:02:31.5]} 15. h3 {[%clk 0:02:39.4]}
15... Kh7 {[%clk 0:02:31.1]} 16. b4 {[%clk 0:02:02.6]} 16... g6 {[%clk
0:02:29.5]} 17. Ng3 {[%clk 0:01:58.8]} 17... Bg7 {[%clk 0:02:28.1]} 18. Nh2
{[%clk 0:01:54.6]} 18... c5 {[%clk 0:02:19]} 19. Qb3 {[%clk 0:01:27.7]} 19...
Qc7 {[%clk 0:02:14.8]} 20. Ng4 {[%clk 0:01:08.8]} 20... Nxg4 {[%clk 0:02:13.1]}
21. hxg4 {[%clk 0:01:09.7]} 21... Rac8 {[%clk 0:02:00.4]} 22. Be3 {[%clk
0:00:57.6]} 22... Red8 {[%clk 0:01:53.3]} 23. g5 {[%clk 0:00:28.7]} 23... h5
{[%clk 0:01:50.9]} 24. f3 {[%clk 0:00:28.2]} 24... Bf8 {[%clk 0:01:48]} 25. Kf2
{[%clk 0:00:21]} 25... d5 {[%clk 0:01:46.1]} 26. exd5 {[%clk 0:00:14.9]} 26...
Bxd5 {[%clk 0:01:42.8]} 27. Qd1 {[%clk 0:00:09.1]} 27... cxb4 {[%clk 0:01:40.7]}
28. Rxa6 {[%clk 0:00:08.7]} 28... bxc3 {[%clk 0:01:39]} 29. bxc3 {[%clk
0:00:09.6]} 29... Qxc3 {[%clk 0:01:39]} 30. Rh1 {[%clk 0:00:08.6]} 30... Qb2+
{[%clk 0:01:31.7]} 31. Qe2 {[%clk 0:00:07.7]} 31... Rc2 {[%clk 0:01:30.8]} 0-1

[Event "*** Titled Tuesday Blitz"]
[Site "Chess.com"]
[Date "2020.05.05"]
[Round "2"]
[White "mortngabriel"]
[Black "ZarinaShafigullina"]
[Result "1-0"]
[WhiteElo "2460"]
[BlackElo "2230"]
[TimeControl "180+1"]
[EndTime "10:16:58 PDT"]
[Termination "mortngabriel won by resignation"]

1. d4 {[%clk 0:03:00.9]} 1... Nf6 {[%clk 0:02:59.2]} 2. c4 {[%clk 0:03:00.8]}
2... e6 {[%clk 0:02:59.6]} 3. Nf3 {[%clk 0:03:01.4]} 3... b6 {[%clk 0:02:59.5]}
4. g3 {[%clk 0:03:01.9]} 4... Ba6 {[%clk 0:02:59.2]} 5. Qc2 {[%clk 0:02:57.6]}
5... Bb7 {[%clk 0:02:57.9]} 6. Bg2 {[%clk 0:02:57.8]} 6... c5 {[%clk 0:02:58.5]}
7. d5 {[%clk 0:02:57.9]} 7... exd5 {[%clk 0:02:58.4]} 8. cxd5 {[%clk 0:02:58.8]}
8... Bxd5 {[%clk 0:02:57.3]} 9. Nc3 {[%clk 0:02:54.2]} 9... Bc6 {[%clk
0:02:57.4]} 10. e4 {[%clk 0:02:53.9]} 10... Be7 {[%clk 0:02:46.5]} 11. e5 {[%clk
0:02:33.9]} 11... Nd5 {[%clk 0:02:42.9]} 12. Nxd5 {[%clk 0:02:33.5]} 12... Bxd5
{[%clk 0:02:42.6]} 13. O-O {[%clk 0:02:34.4]} 13... Qc7 {[%clk 0:02:30.1]} 14.
Bf4 {[%clk 0:02:31]} 14... Qc6 {[%clk 0:02:24.1]} 15. Qc3 {[%clk 0:02:07.5]}
15... Na6 {[%clk 0:02:16.1]} 16. Rad1 {[%clk 0:02:07.1]} 16... Nc7 {[%clk
0:02:10.7]} 17. e6 {[%clk 0:01:50.3]} 17... dxe6 {[%clk 0:01:35.9]} 18. Qxg7
{[%clk 0:01:43.5]} 18... O-O-O {[%clk 0:01:35.5]} 19. Ne5 {[%clk 0:01:32.3]}
19... Qb7 {[%clk 0:01:02.5]} 20. Bxd5 {[%clk 0:01:30.6]} 20... Nxd5 {[%clk
0:01:01.9]} 21. Qxf7 {[%clk 0:01:19.3]} 21... Nxf4 {[%clk 0:00:37.8]} 22. Qxf4
{[%clk 0:01:20.2]} 22... Bd6 {[%clk 0:00:32.8]} 23. Qf7 {[%clk 0:01:15.6]} 23...
Rhe8 {[%clk 0:00:14.6]} 24. Rxd6 {[%clk 0:01:14.3]} 24... Rxd6 {[%clk 0:00:13]}
25. Qxe8+ {[%clk 0:01:14.1]} 25... Kc7 {[%clk 0:00:12]} 26. Qe7+ {[%clk
0:01:13.8]} 1-0

[Event "*** Titled Tuesday Blitz"]
[Site "Chess.com"]
[Date "2020.05.05"]
[Round "2"]
[White "ChessTraining77"]
[Black "Jospem"]
[Result "0-1"]
[WhiteElo "2546"]
[BlackElo "2847"]
[TimeControl "180+1"]
[EndTime "10:16:59 PDT"]
[Termination "Jospem won by resignation"]

1. e4 {[%clk 0:03:00.9]} 1... c5 {[%clk 0:03:00.1]} 2. Nf3 {[%clk 0:03:00]} 2...
d6 {[%clk 0:03:00.8]} 3. Bb5+ {[%clk 0:02:59.3]} 3... Nd7 {[%clk 0:03:00.6]} 4.
c3 {[%clk 0:02:59.4]} 4... Nf6 {[%clk 0:03:00.1]} 5. Bd3 {[%clk 0:02:59.2]} 5...
a6 {[%clk 0:02:59.5]} 6. Bc2 {[%clk 0:02:59.1]} 6... b5 {[%clk 0:03:00.1]} 7. d4
{[%clk 0:02:59.1]} 7... Bb7 {[%clk 0:03:00.5]} 8. Nbd2 {[%clk 0:02:59.2]} 8...
Rc8 {[%clk 0:02:59.8]} 9. O-O {[%clk 0:02:58.7]} 9... e6 {[%clk 0:03:00.2]} 10.
Re1 {[%clk 0:02:57.8]} 10... Be7 {[%clk 0:03:00]} 11. Nf1 {[%clk 0:02:57.6]}
11... Qc7 {[%clk 0:02:57.7]} 12. Bd3 {[%clk 0:02:56.4]} 12... O-O {[%clk
0:02:57.5]} 13. Ng3 {[%clk 0:02:56.5]} 13... Rfe8 {[%clk 0:02:57.7]} 14. h4
{[%clk 0:02:46.4]} 14... Qb8 {[%clk 0:02:53.2]} 15. h5 {[%clk 0:02:45.4]} 15...
Bf8 {[%clk 0:02:43.3]} 16. Qe2 {[%clk 0:02:43.8]} 16... e5 {[%clk 0:02:40.6]}
17. d5 {[%clk 0:02:40.3]} 17... c4 {[%clk 0:02:41]} 18. Bc2 {[%clk 0:02:40]}
18... g6 {[%clk 0:02:41.6]} 19. Bg5 {[%clk 0:02:36.1]} 19... a5 {[%clk
0:02:32.4]} 20. Nh4 {[%clk 0:02:16.8]} 20... Qc7 {[%clk 0:01:16.5]} 21. Qf3
{[%clk 0:01:51.7]} 21... Qd8 {[%clk 0:01:16.5]} 22. Rad1 {[%clk 0:01:34.9]}
22... Rb8 {[%clk 0:01:16.5]} 23. Qe3 {[%clk 0:01:25.2]} 23... Bc8 {[%clk
0:01:14.9]} 24. f4 {[%clk 0:01:15.5]} 24... Ng4 {[%clk 0:01:04.2]} 25. Qf3
{[%clk 0:01:10.6]} 25... Qb6+ {[%clk 0:01:01.9]} 26. Kh1 {[%clk 0:01:02.4]}
26... Nf2+ {[%clk 0:01:01.6]} 27. Kh2 {[%clk 0:01:01.8]} 27... exf4 {[%clk
0:00:52]} 28. Bxf4 {[%clk 0:00:57.1]} 28... Nxd1 {[%clk 0:00:50.6]} 29. Rxd1
{[%clk 0:00:56.5]} 29... Ne5 {[%clk 0:00:51]} 30. Bxe5 {[%clk 0:00:48]} 30...
Rxe5 {[%clk 0:00:51.9]} 31. Qf4 {[%clk 0:00:48.4]} 31... g5 {[%clk 0:00:49.2]}
0-1

[Event "*** Titled Tuesday Blitz"]
[Site "Chess.com"]
[Date "2020.05.05"]
[Round "2"]
[White "semchik73"]
[Black "SmirnovTimofey2000"]
[Result "0-1"]
[WhiteElo "2205"]
[BlackElo "2533"]
[TimeControl "180+1"]
[EndTime "10:17:01 PDT"]
[Termination "SmirnovTimofey2000 won by resignation"]

1. Nf3 {[%clk 0:03:00.5]} 1... d5 {[%clk 0:02:55.6]} 2. c4 {[%clk 0:03:00.5]}
2... d4 {[%clk 0:02:52.4]} 3. e3 {[%clk 0:03:00.4]} 3... Nc6 {[%clk 0:02:50.2]}
4. b4 {[%clk 0:03:00.4]} 4... dxe3 {[%clk 0:02:45.1]} 5. fxe3 {[%clk 0:03:00.9]}
5... Nxb4 {[%clk 0:02:45.1]} 6. d4 {[%clk 0:03:01.4]} 6... e6 {[%clk 0:02:39.7]}
7. a3 {[%clk 0:03:00.4]} 7... Nc6 {[%clk 0:02:24.1]} 8. Bd3 {[%clk 0:03:00.4]}
8... Nf6 {[%clk 0:02:22.9]} 9. O-O {[%clk 0:02:59.4]} 9... Bd6 {[%clk
0:02:22.8]} 10. e4 {[%clk 0:02:57.2]} 10... Nxd4 {[%clk 0:02:20.7]} 11. Bb2
{[%clk 0:02:48.4]} 11... Nxf3+ {[%clk 0:02:11.9]} 12. Qxf3 {[%clk 0:02:48.8]}
12... e5 {[%clk 0:02:06.6]} 13. Nc3 {[%clk 0:02:47.6]} 13... O-O {[%clk
0:02:03.4]} 14. Nd5 {[%clk 0:02:45.3]} 14... Ne8 {[%clk 0:01:56.1]} 15. Qg3
{[%clk 0:02:40.6]} 15... c6 {[%clk 0:01:41.9]} 16. Ne3 {[%clk 0:02:38.1]} 16...
Be6 {[%clk 0:01:36]} 17. Rad1 {[%clk 0:02:35.3]} 17... f6 {[%clk 0:01:29.2]} 18.
Kh1 {[%clk 0:02:15]} 18... Qb6 {[%clk 0:01:27.9]} 19. Ba1 {[%clk 0:02:09.4]}
19... Bxa3 {[%clk 0:01:24.5]} 20. Nf5 {[%clk 0:01:36]} 20... Bc5 {[%clk
0:01:19.4]} 21. Bxe5 {[%clk 0:01:21.9]} 21... Bxf5 {[%clk 0:01:04]} 22. Rxf5
{[%clk 0:01:06.5]} 22... fxe5 {[%clk 0:01:03.4]} 23. Rdf1 {[%clk 0:01:01.3]}
23... Rxf5 {[%clk 0:01:02.5]} 24. Rxf5 {[%clk 0:01:01.1]} 24... Qc7 {[%clk
0:00:56]} 25. Be2 {[%clk 0:00:56.3]} 25... Bd4 {[%clk 0:00:50.1]} 26. Bh5 {[%clk
0:00:54.7]} 26... Nd6 {[%clk 0:00:42]} 27. Rg5 {[%clk 0:00:51]} 27... Nxe4
{[%clk 0:00:39.5]} 28. Qg4 {[%clk 0:00:44.3]} 28... Nf2+ {[%clk 0:00:38.9]} 0-1